fUSD/lending_fUSD_20251224
["ID","MTS","AMOUNT","RATE_DAILY","PERIOD"]
[399670275,1766599840912,-153.0,0.00015767,2]
[399670276,1766599840922,-1256.0,0.00015767,2]
[399670277,1766599840933,-153.0,0.00015767,2]
[399670278,1766599840943,-1337.72421018,0.00015767,2]
[399670279,1766599840954,-153.0,0.00015767,2]
[399670280,1766599840964,-153.0,0.00015767,2]
[399670281,1766599840974,-153.0,0.00015767,2]
[399670282,1766599840991,-153.0,0.00015767,2]
[399670283,1766599841001,-158.0,0.00015767,2]
[399670284,1766599841012,-153.0,0.00015767,2]
[399670285,1766599841022,-158.0,0.00015767,2]
[399670286,1766599841032,-153.0,0.00015767,2]
[399670287,1766599841043,-158.0,0.00015767,2]
[399670288,1766599841053,-153.0,0.00015767,2]
[399670289,1766599841064,-158.0,0.00015767,2]
[399670290,1766599841075,-153.0,0.00015767,2]
[399670291,1766599841087,-158.0,0.00015767,2]
[399670292,1766599841097,-153.0,0.00015767,2]
[399670293,1766599841108,-153.66193719,0.00015767,2]
[399670294,1766599841119,-153.0,0.00015767,2]
[399670295,1766599841131,-153.0,0.00015767,2]
[399670296,1766599841141,-153.0,0.00015767,2]
[399670297,1766599841151,-153.0,0.00015767,2]
[399670298,1766599841163,-153.0,0.00015767,2]
[399670299,1766599841173,-153.0,0.00015767,2]
[399670300,1766599841184,-153.0,0.00015767,2]
[399670301,1766599841195,-153.0,0.00015767,2]
[399670302,1766599841205,-153.0,0.00015767,2]
[399670303,1766599841216,-153.0,0.00015767,2]
[399670304,1766599841226,-153.0,0.00015767,2]
[399670305,1766599841236,-153.0,0.00015767,2]
[399670306,1766599841247,-153.0,0.00015767,2]
[399670307,1766599841259,-153.0,0.00015767,2]
[399670308,1766599841270,-153.0,0.00015767,2]
[399670309,1766599841281,-153.0,0.00015767,2]
[399670310,1766599841291,-153.0,0.00015767,2]
[399670311,1766599841302,-153.0,0.00015767,2]
[399670312,1766599841312,-153.0,0.00015767,2]
[399670313,1766599841322,-153.0,0.00015767,2]
[399670314,1766599841333,-153.0,0.00015767,2]
[399670315,1766599841348,-153.0,0.00015767,2]
[399670316,1766599841359,-153.0,0.00015767,2]
[399670317,1766599841370,-153.0,0.00015767,2]
[399670318,1766599841384,-153.0,0.00015767,2]
[399670319,1766599841394,-153.0,0.00015767,2]
[399670320,1766599841405,-153.0,0.00015767,2]
[399670321,1766599841417,-153.0,0.00015767,2]
[399670322,1766599841428,-153.0,0.00015767,2]
[399670323,1766599841439,-153.0,0.00015767,2]
[399670324,1766599841451,-153.0,0.00015767,2]
[399670325,1766599841462,-153.0,0.00015767,2]
[399670326,1766599841473,-153.0,0.00015767,2]
[399670327,1766599841484,-153.0,0.00015767,2]
[399670328,1766599841494,-153.0,0.00015767,2]
[399670329,1766599841505,-153.0,0.00015767,2]
[399670330,1766599841516,-153.0,0.00015767,2]
[399670331,1766599841527,-153.0,0.00015767,2]
[399670332,1766599841538,-153.0,0.00015767,2]
[399670333,1766599841548,-153.0,0.00015767,2]
[399670334,1766599841560,-153.0,0.00015767,2]
[399670335,1766599841571,-153.0,0.00015767,2]
[399670336,1766599841582,-153.0,0.00015767,2]
[399670337,1766599841593,-166.34344729,0.00015767,2]
[399670338,1766599841604,-6456.31476443,0.0001579,2]
[399670339,1766599841614,-151.0,0.00015797,2]
[399670340,1766599841626,-5888.0,0.00015802,2]
[399670341,1766599841637,-151.0,0.00015808,2]
[399670342,1766599841648,-150.0,0.00015854,2]
[399670343,1766599841658,-6456.31476443,0.00015929,2]
[399670344,1766599841671,-167.36,0.00015945,2]
[399670345,1766599841682,-1095.96,0.00015967,2]
[399670346,1766599841693,-1006.0,0.00015988,2]
[399670347,1766599841704,-841.0,0.00016054,2]
[399670348,1766599841719,-6456.31476443,0.00016067,2]
[399670349,1766599841730,-857.88359013,0.00016102,2]
[399670350,1766599841741,-5888.0,0.00016122,2]
[399670351,1766599841752,-841.0,0.00016124,2]
[399670352,1766599841763,-150.0,0.00016137,2]
[399670353,1766599841773,-150.0,0.00016137,2]
[399670354,1766599841784,-250.0,0.00016164,2]
[399670355,1766599841794,-204.06937007,0.00016164,2]
[399670356,1766599841805,-150.0,0.00016164,2]
[399670357,1766599841815,-150.0,0.00016164,2]
[399670358,1766599841826,-150.0,0.00016164,2]
[399670359,1766599841837,-2500.0,0.00016168,2]
[399670360,1766599841848,-285.82816368,0.00016179,2]
[399670361,1766599841859,-150.0,0.00016191,2]
[399670362,1766599841869,-266.94089166,0.00016201,2]
[399670363,1766599841881,-6456.31476443,0.00016206,2]
[399670364,1766599841892,-420.0,0.00016208,2]
[399670365,1766599841902,-857.88359011,0.00016216,2]
[399670366,1766599841917,-200.0,0.00016219,2]
[399670367,1766599841928,-150.0,0.00016219,2]
[399670368,1766599841939,-150.0,0.00016219,2]
[399670369,1766599841950,-200.0,0.0001622,2]
[399670370,1766599841961,-201.68796137,0.00016231,2]
[399670371,1766599841973,-700.15108632,0.00016231,2]
[399670372,1766599841983,-201.0916735,0.00016231,2]
[399670373,1766599841994,-503.77633702,0.00016231,2]
[399670374,1766599842005,-203.59064575,0.00016233,2]
[399670375,1766599842016,-1095.96,0.00016241,2]
[399670376,1766599842028,-1500.0,0.00016268,2]
[399670377,1766599842039,-1500.0,0.00016268,2]
[399670378,1766599842050,-1680.0,0.00016287,2]
[399670379,1766599842061,-151.0,0.00016293,2]
[399670380,1766599842072,-151.0,0.00016293,2]
[399670381,1766599842083,-151.0,0.00016293,2]
[399670382,1766599842094,-500.0,0.00016295,2]
[399670383,1766599842105,-235.01995622,0.00016295,2]
[399670384,1766599842118,-400.94094695,0.00016295,2]
[399670385,1766599842129,-511.62107373,0.00016295,2]
[399670386,1766599842139,-500.0,0.00016295,2]
[399670387,1766599842151,-500.0,0.00016295,2]
[399670388,1766599842162,-500.0,0.00016295,2]
[399670389,1766599842173,-500.0,0.00016295,2]
[399670390,1766599842184,-500.0,0.00016295,2]
[399670391,1766599842195,-500.0,0.00016295,2]
[399670392,1766599842205,-500.0,0.00016295,2]
[399670393,1766599842216,-451.44,0.00016295,2]
[399670394,1766599842227,-6194.0,0.00016296,2]
[399670395,1766599842238,-150.0,0.00016296,2]
[399670396,1766599842248,-841.0,0.00016301,2]
[399670397,1766599842259,-857.88359011,0.0001633,2]
[399670398,1766599842270,-6456.31476443,0.00016345,2]
[399670399,1766599842282,-841.0,0.0001637,2]
[399670400,1766599842293,-1000.0,0.00016385,2]
[399670401,1766599842304,-510.0,0.00016419,2]
[399670402,1766599842314,-150.0,0.0001642,2]
[399670403,1766599842325,-500.0,0.00016438,2]
[399670404,1766599842336,-500.0,0.00016438,2]
[399670405,1766599842347,-500.0,0.00016438,2]
[399670406,1766599842357,-500.0,0.00016438,2]
[399670407,1766599842369,-500.0,0.00016438,2]
[399670408,1766599842381,-500.0,0.00016438,2]
[399670409,1766599842391,-500.0,0.00016438,2]
[399670410,1766599842402,-500.0,0.00016438,2]
[399670411,1766599842414,-500.0,0.00016438,2]
[399670412,1766599842424,-500.0,0.00016438,2]
[399670413,1766599842434,-500.0,0.00016438,2]
[399670414,1766599842447,-500.0,0.00016438,2]
[399670415,1766599842458,-500.0,0.00016438,2]
[399670416,1766599842468,-500.0,0.00016438,2]
[399670417,1766599842479,-500.0,0.00016438,2]
[399670418,1766599842489,-500.0,0.00016438,2]
[399670419,1766599842509,-500.0,0.00016438,2]
[399670420,1766599842523,-500.0,0.00016438,2]
[399670421,1766599842534,-500.0,0.00016438,2]
[399670422,1766599842546,-500.0,0.00016438,2]
[399670423,1766599842557,-500.0,0.00016438,2]
[399670424,1766599842568,-500.0,0.00016438,2]
[399670425,1766599842579,-500.0,0.00016438,2]
[399670426,1766599842590,-500.0,0.00016438,2]
[399670427,1766599842600,-427.3313242,0.00016438,2]
[399670428,1766599842611,-500.0,0.00016438,2]
[399670429,1766599842622,-500.0,0.00016438,2]
[399670430,1766599842633,-500.0,0.00016438,2]
[399670431,1766599842644,-499.99999999,0.00016438,2]
[399670432,1766599842655,-500.0,0.00016438,2]
[399670433,1766599842665,-150.0,0.00016438,2]
[399670434,1766599842676,-164.54,0.0001644,2]
[399670435,1766599842686,-857.88359011,0.00016444,2]
[399670436,1766599842697,-398.40831123,0.00016462,2]
[399670437,1766599842708,-150.0,0.00016465,2]
[399670438,1766599842719,-151.0,0.00016479,2]
[399670439,1766599842730,-552.8787348,0.00016482,2]
[399670440,1766599842740,-210909.45305637,0.00016482,2]
[399670452,1766599843557,-262.89596805,0.00016482,2]
[399670453,1766599843582,-341.41544336,0.00016482,2]
[399670454,1766599843612,-394.58482853,0.00016482,2]
[399670455,1766599843990,-396.66388166,0.00015537,2]
[399670456,1766599844003,-8102.83272952,0.00015537,2]
[399670457,1766599844022,-1807.69,0.00015537,2]
[399670458,1766599844742,-971.81328667,0.00015537,2]
[399670459,1766599844755,-13025.60107152,0.00015537,2]
[399670460,1766599844766,-215.0,0.00015983,2]
[399670461,1766599844775,-200.0,0.00016029,2]
[399670462,1766599844786,-10373.08016814,0.00016482,2]
[399670485,1766599846662,-340.54161545,0.00015731,2]
[399670486,1766600298848,-195.00000017,0.00014285,2]
[399670487,1766600302692,-329.70709825,0.00014285,2]
[399670488,1766600357778,999.0,0.00014221,3]
[399670489,1766600370182,9001.01,0.00014212,2]
[399670490,1766600370206,1936.091877,0.00014212,2]
[399670493,1766600496136,1843.49,0.00014208,2]
[399670494,1766600590061,1600.0,0.00014205,2]
[399670495,1766600666268,768.98,0.00014037,2]
[399670497,1766600737894,1000.0,0.00014028,2]
[399670504,1766600889067,306.53543765,0.000125,2]
[399670565,1766600916741,2544.91268535,0.0001,2]
[399670566,1766600916768,1668.70993173,0.0001,2]
[399670568,1766600969149,-268.0,0.00014284,2]
[399670569,1766600969174,-225.41119016,0.00014284,2]
[399670570,1766600969196,-195.0,0.00014284,2]
[399670571,1766600969218,-226.45427209,0.0001429,2]
[399670572,1766600969241,-195.0,0.0001429,2]
[399670573,1766600969263,-5.66547158,0.00014356,2]
[399670583,1766601032092,-900.0,0.00014356,2]
[399670585,1766601032102,-1200.0,0.00014356,2]
[399670586,1766601032111,-600.0,0.00014356,2]
[399670587,1766601032121,-195.0,0.00014357,2]
[399670588,1766601032131,-300.0,0.00014357,2]
[399670589,1766601032141,-7495.18,0.00014357,2]
[399670590,1766601032151,-195.0,0.00014373,2]
[399670591,1766601032160,-300.0,0.00014373,2]
[399670592,1766601032169,-300.0,0.00014386,2]
[399670593,1766601032179,-300.0,0.00014386,2]
[399670594,1766601032189,-300.0,0.00014386,2]
[399670595,1766601032198,-151.0,0.00014387,2]
[399670596,1766601032208,-496.83993011,0.00014388,2]
[399670597,1766601032218,-1033.49324103,0.00014388,2]
[399670598,1766601032230,-801.95128758,0.00014388,2]
[399670599,1766601032284,-366.13195705,0.00014388,2]
[399670601,1766601032295,-700.36150344,0.00014388,2]
[399670605,1766601032318,-4952.65,0.00014388,2]
[399670607,1766601032329,-3000.70572044,0.00014388,2]
[399670609,1766601032341,-864.68137563,0.00014388,2]
[399670611,1766601032352,-4687.92848541,0.00014388,2]
[399670613,1766601032363,-266.99999979,0.00014388,2]
[399670616,1766601032374,-2734.72304359,0.00014388,2]
[399670618,1766601032384,-150.0,0.00014388,2]
[399670620,1766601032393,-500.0,0.00014389,2]
[399670621,1766601032402,-500.0,0.00014389,2]
[399670623,1766601032412,-264.79702732,0.00014389,2]
[399670625,1766601032421,-500.0,0.00014389,2]
[399670627,1766601032431,-539.48888305,0.00014389,2]
[399670628,1766601032440,-408.04037234,0.00014389,2]
[399670629,1766601032452,-91.95962766,0.00014389,2]
[399670631,1766601032461,-539.48888305,0.00014389,2]
[399670633,1766601032471,-254.39512574,0.00014389,2]
[399670634,1766601032482,-207.95474889,0.00014389,2]
[399670635,1766601032491,-345.10653491,0.00014389,2]
[399670636,1766601032510,-194.38234814,0.00014389,2]
[399670637,1766601032519,-500.0,0.00014389,2]
[399670638,1766601032529,-539.48888305,0.00014389,2]
[399670639,1766601032538,-500.0,0.00014389,2]
[399670640,1766601032548,-539.48888305,0.00014389,2]
[399670641,1766601032558,-539.48888305,0.00014389,2]
[399670642,1766601032567,-500.0,0.00014389,2]
[399670643,1766601032576,-539.48888305,0.00014389,2]
[399670644,1766601032585,-200.0,0.00014389,2]
[399670645,1766601032595,-539.48888305,0.00014389,2]
[399670646,1766601032604,-539.48888305,0.00014389,2]
[399670647,1766601032613,-539.48888305,0.00014389,2]
[399670648,1766601032623,-539.48888305,0.00014389,2]
[399670649,1766601032632,-539.48888305,0.00014389,2]
[399670650,1766601032641,-279.56947038,0.00014389,2]
[399670651,1766601032650,-539.48888305,0.00014389,2]
[399670652,1766601032660,-539.48888305,0.00014389,2]
[399670653,1766601032669,-539.48888305,0.00014389,2]
[399670654,1766601032678,-475.91320158,0.00014389,2]
[399670655,1766601038215,-63.57568147,0.00014389,2]
[399670656,1766601038226,-539.48888305,0.00014389,2]
[399670657,1766601038236,-248.93543569,0.00014389,2]
[399670658,1766601038253,-290.55344736,0.00014389,2]
[399670659,1766601038263,-539.48888305,0.00014389,2]
[399670660,1766601038273,-163.299193,0.00014389,2]
[399670661,1766601038285,-376.18969005,0.00014389,2]
[399670662,1766601038295,-539.48888305,0.00014389,2]
[399670663,1766601038305,-539.48888305,0.00014389,2]
[399670664,1766601038315,-539.48888305,0.00014389,2]
[399670665,1766601038324,-408.18489845,0.00014389,2]
[399670666,1766601038344,-131.3039846,0.00014389,2]
[399670667,1766601038354,-466.94943728,0.00014389,2]
[399670668,1766601038366,-72.53944577,0.00014389,2]
[399670669,1766601038376,-539.48888305,0.00014389,2]
[399670670,1766601038387,-539.48888305,0.00014389,2]
[399670671,1766601038396,-539.48888305,0.00014389,2]
[399670672,1766601038406,-539.48888305,0.00014389,2]
[399670673,1766601038416,-539.48888305,0.00014389,2]
[399670674,1766601038426,-539.48888305,0.00014389,2]
[399670675,1766601038436,-539.48888305,0.00014389,2]
[399670676,1766601038446,-539.48888305,0.00014389,2]
[399670677,1766601038456,-539.48888305,0.00014389,2]
[399670678,1766601038465,-539.48888305,0.00014389,2]
[399670679,1766601038475,-539.48888305,0.00014389,2]
[399670680,1766601038485,-539.48888305,0.00014389,2]
[399670681,1766601038495,-539.48888305,0.00014389,2]
[399670682,1766601038504,-539.48888305,0.00014389,2]
[399670683,1766601038515,-539.48888305,0.00014389,2]
[399670684,1766601038525,-539.48888305,0.00014389,2]
[399670685,1766601038535,-539.48888305,0.00014389,2]
[399670686,1766601038545,-539.48888305,0.00014389,2]
[399670687,1766601038555,-539.48888305,0.00014389,2]
[399670688,1766601038565,-539.48888305,0.00014389,2]
[399670690,1766601038576,-539.48888305,0.00014389,2]
[399670693,1766601038587,-539.48888305,0.00014389,2]
[399670695,1766601038597,-539.48888305,0.00014389,2]
[399670697,1766601038607,-539.48888305,0.00014389,2]
[399670699,1766601038618,-539.48888305,0.00014389,2]
[399670700,1766601038627,-500.0,0.00014389,2]
[399670701,1766601038637,-213.65788074,0.00014389,2]
[399670702,1766601038646,-635.96090317,0.00014389,2]
[399670703,1766601038656,-569.86286538,0.00014389,2]
[399670704,1766601038666,-569.86286538,0.00014389,2]
[399670705,1766601038675,-569.86286538,0.00014389,2]
[399670706,1766601038686,-569.86286538,0.00014389,2]
[399670707,1766601038699,-569.86286538,0.00014389,2]
[399670708,1766601038713,-569.86286538,0.00014389,2]
[399670709,1766601038723,-569.86286538,0.00014389,2]
[399670710,1766601038733,-569.86286538,0.00014389,2]
[399670711,1766601038743,-569.86286538,0.00014389,2]
[399670712,1766601038753,-569.86286538,0.00014389,2]
[399670713,1766601038764,-569.86286538,0.00014389,2]
[399670714,1766601038775,-569.86286538,0.00014389,2]
[399670715,1766601038785,-569.86286538,0.00014389,2]
[399670716,1766601038795,-569.86286538,0.00014389,2]
[399670717,1766601038805,-569.86286538,0.00014389,2]
[399670718,1766601038815,-569.86286538,0.00014389,2]
[399670719,1766601038827,-569.86286538,0.00014389,2]
[399670720,1766601038838,-569.86286538,0.00014389,2]
[399670721,1766601038848,-569.86286538,0.00014389,2]
[399670722,1766601038858,-569.86286538,0.00014389,2]
[399670723,1766601038868,-569.86286538,0.00014389,2]
[399670724,1766601038878,-569.86286538,0.00014389,2]
[399670725,1766601038889,-569.86286538,0.00014389,2]
[399670726,1766601038899,-569.86286538,0.00014389,2]
[399670727,1766601038909,-569.86286538,0.00014389,2]
[399670728,1766601038919,-569.86286538,0.00014389,2]
[399670729,1766601038930,-569.86286538,0.00014389,2]
[399670730,1766601038940,-569.86286538,0.00014389,2]
[399670731,1766601038951,-569.86286538,0.00014389,2]
[399670732,1766601038960,-569.86286538,0.00014389,2]
[399670733,1766601038971,-569.86286538,0.00014389,2]
[399670734,1766601038982,-569.86286538,0.00014389,2]
[399670735,1766601038992,-569.86286538,0.00014389,2]
[399670736,1766601039003,-569.86286532,0.00014389,2]
[399670737,1766601039013,-569.86286532,0.00014389,2]
[399670738,1766601039023,-569.86286532,0.00014389,2]
[399670739,1766601039033,-1000000.0,0.0001439,2]
[399670740,1766601039043,-2880.57,0.00014488,2]
[399670741,1766601039053,-299.99,0.00014488,2]
[399670742,1766601039064,-9999.99,0.00014489,2]
[399670743,1766601039075,-9999.99,0.00014489,2]
[399670744,1766601039085,-9999.99,0.00014489,2]
[399670745,1766601039095,-13357.38,0.00014489,2]
[399670746,1766601039104,-1781.875,0.0001449,2]
[399670747,1766601039114,-214.053,0.0001449,2]
[399670748,1766601039124,-18587.16,0.0001449,2]
[399670750,1766601039134,-500.0,0.00014663,2]
[399670752,1766601039144,-19409.62661395,0.00014667,2]
[399670754,1766601039154,-2695.37,0.00014746,2]
[399670756,1766601039165,-157.9,0.00014813,2]
[399670758,1766601039175,-177.95989573,0.00014936,2]
[399670760,1766601039186,-500.0,0.00014937,2]
[399670762,1766601039196,-195.0,0.00014943,2]
[399670764,1766601039207,-19409.62661395,0.00014946,2]
[399670766,1766601039218,-500.0,0.00014985,2]
[399670768,1766601039227,-5014.92,0.00014999,2]
[399670770,1766601039238,-2041.47960317,0.00015,2]
[399670772,1766601039248,-7947.26999932,0.00015,2]
[399670774,1766601039259,-21363.10346556,0.00015,2]
[399670776,1766601039269,-1155.1798605,0.00015,2]
[399670778,1766601039278,-33595.71545948,0.00015,2]
[399670780,1766601039288,-500.0,0.00015068,2]
[399670781,1766601039298,-509.8537,0.00015088,2]
[399670784,1766601039309,-319.06840233,0.00015088,2]
[399670786,1766601039319,-1852.42,0.00015102,2]
[399670787,1766601039329,-158.0,0.00015125,2]
[399670788,1766601039338,-11469.86524956,0.00015136,2]
[399670789,1766601039348,-886.02870925,0.00015136,2]
[399670790,1766601039358,-264.90111466,0.00015139,2]
[399670791,1766601039368,-200.0,0.00015139,2]
[399670792,1766601039378,-200.0,0.00015139,2]
[399670793,1766601039387,-151.0,0.00015139,2]
[399670794,1766601039397,-151.0,0.00015139,2]
[399670795,1766601039407,-151.0,0.00015139,2]
[399670796,1766601039416,-151.0,0.00015139,2]
[399670797,1766601039426,-151.0,0.00015139,2]
[399670798,1766601039436,-500.0,0.00015139,2]
[399670799,1766601039446,-151.0,0.00015139,2]
[399670800,1766601039457,-151.0,0.00015139,2]
[399670801,1766601039468,-258.72522517,0.00015139,2]
[399670802,1766601039477,-496.83993009,0.00015144,2]
[399670803,1766601039488,-1000.0,0.00015172,2]
[399670804,1766601039498,-500.0,0.00015173,2]
[399670805,1766601039507,-500.0,0.00015173,2]
[399670806,1766601039517,-353.92874992,0.00015173,2]
[399670807,1766601039527,-500.0,0.00015173,2]
[399670808,1766601039539,-500.0,0.00015173,2]
[399670809,1766601039549,-691.0,0.00015178,2]
[399670810,1766601039558,-153.0,0.00015178,2]
[399670811,1766601039568,-1143.40275555,0.00015187,5]
[399670812,1766601039578,-500.0,0.00015187,2]
[399670813,1766601039589,-500.0,0.00015187,2]
[399670814,1766601039600,-511.62107373,0.00015187,2]
[399670815,1766601039610,-500.0,0.00015187,2]
[399670816,1766601039621,-500.0,0.00015187,2]
[399670817,1766601039631,-500.0,0.00015187,2]
[399670818,1766601039640,-500.0,0.00015187,2]
[399670819,1766601039650,-500.0,0.00015187,2]
[399670820,1766601039660,-500.0,0.00015187,2]
[399670821,1766601039669,-940.97,0.00015187,2]
[399670822,1766601039679,-500.55152277,0.00015187,2]
[399670823,1766601039689,-500.0,0.00015187,2]
[399670824,1766601039703,-500.0,0.00015187,2]
[399670825,1766601039713,-500.0,0.00015187,2]
[399670826,1766601039723,-500.0,0.00015187,2]
[399670827,1766601039733,-500.0,0.00015187,2]
[399670828,1766601039745,-500.0,0.00015187,2]
[399670829,1766601039755,-500.0,0.00015187,2]
[399670830,1766601039764,-500.0,0.00015187,2]
[399670831,1766601039776,-500.0,0.00015187,2]
[399670832,1766601039785,-469.51043734,0.00015187,2]
[399670833,1766601039795,-500.0,0.00015187,2]
[399670834,1766601039805,-345.61944789,0.00015187,2]
[399670835,1766601039815,-500.0,0.00015187,2]
[399670836,1766601039824,-500.0,0.00015187,2]
[399670837,1766601039833,-500.0,0.00015187,2]
[399670838,1766601039843,-500.0,0.00015187,2]
[399670839,1766601039853,-500.0,0.00015187,2]
[399670840,1766601039863,-150.0,0.00015187,2]
[399670841,1766601039873,-500.0,0.00015187,2]
[399670842,1766601039883,-500.0,0.00015187,2]
[399670843,1766601039892,-500.0,0.00015187,2]
[399670844,1766601039901,-532.74252407,0.00015187,2]
[399670845,1766601039911,-500.0,0.00015187,2]
[399670846,1766601039922,-304.45282569,0.00015211,2]
[399670847,1766601039931,-19409.62661395,0.00015225,2]
[399670848,1766601039941,-305.22,0.00015246,2]
[399670849,1766601039951,-150.0,0.00015288,2]
[399670850,1766601039960,-150.0,0.00015288,2]
[399670851,1766601039971,-150.0,0.00015288,2]
[399670852,1766601039981,-150.0,0.00015288,2]
[399670856,1766601040238,-150.0,0.00015288,2]
[399670857,1766601040250,-150.0,0.00015288,2]
[399670858,1766601040260,-150.0,0.00015288,2]
[399670859,1766601040270,-179.31223623,0.00015288,2]
[399670860,1766601040281,-150.0,0.00015288,2]
[399670861,1766601040290,-150.0,0.00015288,2]
[399670862,1766601040300,-11469.86524949,0.00015332,2]
[399670863,1766601040310,-150.96,0.00015336,2]
[399670864,1766601040320,-230.0,0.00015338,2]
[399670865,1766601040330,-500.0,0.00015342,2]
[399670866,1766601040340,-422.0,0.00015368,2]
[399670867,1766601040350,-886.02870925,0.00015388,2]
[399670868,1766601040360,-338.0,0.00015399,2]
[399670869,1766601040370,-1277.0,0.00015415,2]
[399670870,1766601040380,-940.97,0.00015461,2]
[399670871,1766601040390,-986.0,0.00015504,2]
[399670872,1766601040400,-19409.62661395,0.00015504,2]
[399670873,1766601040410,-500.0,0.00015507,2]
[399670874,1766601040420,-255.0,0.0001551,2]
[399670875,1766601040430,-151.0,0.00015525,2]
[399670876,1766601040440,-11469.86524949,0.00015528,2]
[399670877,1766601040450,-19393.81,0.00015549,2]
[399670878,1766601040460,-150.0,0.00015627,2]
[399670879,1766601040470,-150.0,0.00015627,2]
[399670880,1766601040480,-157.9,0.00015636,2]
[399670881,1766601040492,-886.02870925,0.0001564,2]
[399670882,1766601040502,-1000.0,0.00015667,2]
[399670883,1766601040512,-201.0916735,0.00015687,2]
[399670884,1766601040522,-201.68796137,0.00015687,2]
[399670885,1766601040531,-503.77633702,0.00015687,2]
[399670886,1766601040541,-150.0,0.00015712,2]
[399670887,1766601040550,-195.0,0.00015712,2]
[399670888,1766601040560,-250.0,0.00015712,2]
[399670889,1766601040569,-195.0,0.00015712,2]
[399670890,1766601040580,-300.0,0.00015712,2]
[399670891,1766601040589,-734.70709825,0.00015712,2]
[399670892,1766601040598,-250.0,0.00015712,2]
[399670893,1766601040608,-1013.73048679,0.00015721,2]
[399670895,1766601040617,-1000.0,0.00015721,2]
[399670897,1766601040626,-839.47657605,0.00015721,2]
[399670899,1766601040637,-1000.0,0.00015721,2]
[399670901,1766601040647,-11469.86524949,0.00015724,2]
[399670903,1766601040656,-500.0,0.00015731,2]
[399670905,1766601040666,-940.97,0.00015735,2]
[399670907,1766601040675,-530.0,0.00015753,2]
[399670908,1766601040685,-420.0,0.00015755,2]
[399670910,1766601040698,-300.0,0.00015755,2]
[399670912,1766601040708,-420.0,0.00015755,2]
[399670914,1766601040718,-1000.0,0.00015781,2]
[399670916,1766601040727,-19409.62661395,0.00015784,2]
[399670920,1766601040739,-195.0,0.00015792,2]
[399670924,1766601040749,-300.0,0.00015792,2]
[399670925,1766601040759,-600.0,0.00015792,2]
[399670926,1766601040770,-300.0,0.00015792,2]
[399670927,1766601040780,-250.0,0.00015792,2]
[399670928,1766601040793,-1680.0,0.00015792,2]
[399670929,1766601040804,-150.0,0.00015854,2]
[399670930,1766601040814,-886.02870925,0.00015892,2]
[399670931,1766601040824,-496.83993009,0.000159,2]
[399670932,1766601040834,-11469.86524949,0.0001592,2]
[399670933,1766601040843,-322.6107,0.00015948,2]
[399670934,1766601040853,-250.0,0.00015948,2]
[399670935,1766601040863,-500.0,0.00015948,2]
[399670936,1766601040873,-250.0,0.00015948,2]
[399670937,1766601040883,-500.0,0.00015948,2]
[399670938,1766601040894,-500.0,0.00015948,2]
[399670939,1766601040903,-250.0,0.00015948,2]
[399670940,1766601040912,-500.0,0.00015948,2]
[399670941,1766601040922,-500.0,0.00015948,2]
[399670942,1766601040932,-250.0,0.00015948,2]
[399670943,1766601040941,-500.0,0.00015948,2]
[399670944,1766601040951,-500.0,0.00015948,2]
[399670945,1766601040960,-226.41712887,0.00015948,2]
[399670946,1766601040970,-500.0,0.00015948,2]
[399670947,1766601040979,-500.0,0.00015948,2]
[399670948,1766601040989,-500.0,0.00015948,2]
[399670949,1766601040999,-500.0,0.00015948,2]